bitfinex/quotes_SOLUSD_20250924
["timestamp","ask_amount","ask_price","bid_price","bid_amount"]
[1758738883723,0.14216157,214.41,214.38,17.22614876]
[1758738883892,2.14630443,214.39,214.38,17.22614876]
[1758738884290,2.14630443,214.39,214.38,16.52614876]
[1758738886699,2.14630443,214.39,214.38,17.22614876]
[1758738887117,2.14630443,214.39,214.38,16.52614876]
[1758738887907,2.14630443,214.39,214.38,17.22614876]
[1758738888690,35.8,214.4,214.38,17.22614876]
[1758738888916,2.14630443,214.39,214.38,16.52614876]
[1758738891122,2.14630443,214.39,214.38,17.24614876]
[1758738893922,0.48,214.48,214.38,17.24614876]
[1758738894108,2.14630443,214.4,214.39,0.72]
[1758738895120,26.0,214.41,214.4,4.6641791]
[1758738895427,28.14630443,214.41,214.4,5.3841791]
[1758738898831,26.0,214.41,214.4,5.3841791]
[1758738899018,28.14630443,214.41,214.4,5.3841791]
[1758738899841,2.14630443,214.44,214.4,17.04462686]
[1758738900136,2.14630443,214.44,214.41,0.71]
[1758738900507,2.14630443,214.43,214.41,0.71]
[1758738901025,2.14630443,214.43,214.42,4.66374405]
[1758738901326,2.14630443,214.43,214.42,5.37374405]
[1758738901529,2.14630443,214.44,214.42,5.37374405]
[1758738901829,2.14630443,214.44,214.43,0.71]
[1758738902435,148.62622904,214.49,214.43,0.71]
[1758738902651,3.35388722,214.47,214.43,0.71]
[1758738903234,3.35388722,214.46,214.44,16.32158179]
[1758738903436,3.35388722,214.46,214.45,0.71]
[1758738905230,3.35388722,214.46,214.45,5.37309162]
[1758738905733,29.83388722,214.46,214.45,4.66309162]
[1758738906037,32.46635435,214.46,214.45,4.66309162]
[1758738907029,32.46635435,214.46,214.44,11.65827271]
[1758738907233,3.35388722,214.45,214.44,11.65827271]
[1758738908941,6.46739891,214.45,214.44,11.65827271]
[1758738909142,3.35388722,214.45,214.44,11.65827271]
[1758738909340,6.46745488,214.45,214.44,11.65827271]
[1758738909519,3.35388722,214.45,214.44,12.36827271]
[1758738910639,3.35388722,214.45,214.44,17.03158179]
[1758738911134,3.35388722,214.45,214.44,16.32158179]
[1758738911314,6.46841057,214.45,214.44,17.03158179]
[1758738912571,6.46841057,214.45,214.44,16.32158179]
[1758738912720,6.46841057,214.45,214.43,0.71]
[1758738912924,3.35388722,214.44,214.43,0.71]
[1758738914830,3.35388722,214.44,214.43,5.37352655]
[1758738915018,26.0,214.46,214.43,17.03234294]
[1758738915219,3.35388722,214.45,214.43,16.32234294]
[1758738915619,26.0,214.46,214.43,16.32234294]
[1758738915620,26.0,214.46,214.44,0.71]
[1758738915920,3.35388722,214.49,214.44,0.71]
[1758738916118,3.11740283,214.48,214.44,0.71]
[1758738916317,6.47079423,214.49,214.44,0.71]
[1758738916834,29.35388722,214.52,214.46,3.35388722]
[1758738917041,3.11708022,214.51,214.47,0.71]
[1758738917344,6.47096744,214.52,214.47,0.71]
[1758738917919,3.11708022,214.52,214.47,4.06388722]
[1758738918147,3.11708022,214.52,214.48,0.71]
[1758738919039,3.11708022,214.52,214.49,16.31777704]
[1758738919243,43.33738237,214.56,214.5,0.71]
[1758738919444,3.35388722,214.55,214.5,0.71]
[1758738919626,3.35388722,214.55,214.51,0.71]
[1758738919943,3.35388722,214.55,214.52,0.71]
[1758738920819,3.35388722,214.54,214.52,0.66]
[1758738921024,3.35388722,214.55,214.52,0.66]
[1758738921226,3.35388722,214.55,214.53,4.66135272]
[1758738921426,62.28,214.57,214.53,4.66135272]
[1758738921624,3.35388722,214.55,214.53,4.66135272]
[1758738922344,3.35388722,214.55,214.53,16.31473453]
[1758738922650,3.35388722,214.54,214.53,16.31473453]
[1758738923255,3.35388722,214.54,214.53,11.65338181]
[1758738924853,3.35388722,214.55,214.53,0.66]
[1758738925235,3.35388722,214.54,214.51,0.66]
[1758738925443,62.28,214.57,214.52,0.66]
[1758738925635,3.35388722,214.55,214.52,0.66]
[1758738926261,3.35388722,214.54,214.52,0.66]
[1758738926856,3.35388722,214.54,214.5,40.28703962]
[1758738927153,3.35388722,214.54,214.51,0.66]
[1758738927346,3.35388722,214.54,214.5,39.62703962]
[1758738927347,3.35388722,214.54,214.52,0.66]
[1758738928061,3.35388722,214.54,214.53,4.66135272]
[1758738929744,3.35388722,214.54,214.53,5.32135272]
[1758738931863,61.8,214.57,214.53,5.32135272]
[1758738931864,61.8,214.57,214.53,16.97473453]
[1758738932165,3.35388722,214.54,214.53,16.31473453]
[1758738932549,3.35388722,214.54,214.53,16.97473453]
[1758738932950,61.8,214.57,214.53,16.97473453]
[1758738933155,3.35388722,214.54,214.53,16.97473453]
[1758738940547,61.8,214.57,214.53,16.97473453]
[1758738940752,3.35388722,214.58,214.54,0.66]
[1758738941757,137.95388722,214.59,214.55,16.3132137]
[1758738942067,137.95388722,214.59,214.56,0.66]
[1758738942245,3.35388722,214.58,214.56,0.66]
[1758738942448,3.35388722,214.57,214.56,0.66]
[1758738942738,3.35388722,214.58,214.56,0.66]
[1758738943468,3.35388722,214.58,214.55,16.3132137]
[1758738943778,3.35388722,214.58,214.57,5.32048375]
[1758738943974,134.6,214.59,214.57,5.32048375]
[1758738944154,137.95388722,214.59,214.58,0.66]
[1758738945166,134.6,214.59,214.58,5.32026656]
[1758738945353,137.95388722,214.59,214.58,5.32026656]
[1758738947675,137.95388722,214.59,214.58,4.66026656]
[1758738949094,137.95388722,214.59,214.57,4.66048375]
[1758738949252,3.35388722,214.58,214.57,4.66048375]
[1758738950572,3.35388722,214.58,214.56,0.66]
[1758738951655,3.83388722,214.57,214.55,11.6522955]
[1758738951875,35.76,214.58,214.55,11.6522955]
[1758738952060,3.35388722,214.56,214.55,11.6522955]
[1758738952264,39.11388722,214.56,214.55,11.6522955]
[1758738952468,39.59388722,214.56,214.54,4.66113545]
[1758738952661,3.35388722,214.55,214.52,11.65345266]
[1758738952979,3.35388722,214.53,214.52,11.65345266]
[1758738953654,3.35388722,214.53,214.52,16.99502267]
[1758738953979,35.76,214.56,214.52,16.99502267]
[1758738953980,3.35388722,214.55,214.52,16.99502267]
[1758738954157,3.35388722,214.55,214.53,0.68]
[1758738954357,35.76,214.58,214.53,0.68]
[1758738954584,3.35388722,214.56,214.53,0.68]
[1758738955164,3.35388722,214.55,214.54,0.68]
[1758738955876,35.76,214.58,214.54,16.99397408]
[1758738956078,3.35388722,214.57,214.55,0.68]
[1758738956384,3.35388722,214.56,214.54,16.99397408]
[1758738956676,35.76,214.58,214.55,0.68]
[1758738957770,3.35388722,214.56,214.55,5.3409182]
[1758738957971,3.35388722,214.56,214.55,4.6609182]
[1758738959464,3.35388722,214.56,214.51,39.62519228]
[1758738959670,3.35388722,214.56,214.55,0.68]
[1758738960056,3.35388722,214.57,214.55,0.68]
[1758738960254,35.76,214.58,214.55,0.68]
[1758738960459,26.0,214.62,214.56,0.67]
[1758738960682,3.35388722,214.59,214.56,0.67]
[1758738960885,3.35388722,214.59,214.57,0.67]
[1758738961666,3.35388722,214.59,214.58,4.66026656]
[1758738962659,2.14421758,214.59,214.58,4.66026656]
[1758738963376,2.14421758,214.59,214.56,16.3122173]
[1758738963682,2.14421758,214.57,214.56,16.3122173]
[1758738964985,2.14421758,214.58,214.56,16.9822173]
[1758738965190,2.14421758,214.58,214.57,0.67]
[1758738965589,37.90421758,214.6,214.57,0.67]
[1758738965780,2.14421758,214.6,214.57,0.67]
[1758738966691,2.14421758,214.6,214.56,16.3122173]
[1758738967000,3.11187943,214.61,214.58,16.31069271]
[1758738967371,3.59187943,214.61,214.58,16.31069271]
[1758738967599,3.11187943,214.61,214.58,16.31069271]
[1758738968090,2.14421758,214.59,214.58,16.31069271]
[1758738969785,2.14421758,214.59,214.58,16.98069271]
[1758738974812,2.14421758,214.59,214.58,16.31069271]
[1758738975885,2.14421758,214.59,214.58,16.98069271]
[1758738976496,2.14421758,214.6,214.58,16.98069271]
[1758738976704,2.14421758,214.6,214.59,0.67]
[1758738977019,2.14421758,214.6,214.59,5.33004939]
[1758738977196,2.14421758,214.61,214.59,16.98017288]
[1758738977516,2.14421758,214.61,214.6,0.67]
[1758738978413,26.0,214.66,214.6,0.67]
[1758738978603,38.8719018,214.65,214.6,0.67]
[1758738978792,5.25611938,214.64,214.61,16.30865289]
[1758738978996,5.25611938,214.64,214.62,0.67]
[1758738980144,5.25611938,214.64,214.63,4.65918091]
[1758738981733,35.76,214.66,214.63,16.99713319]
[1758738981907,2.14421758,214.65,214.64,0.69]
[1758738983428,5.25978502,214.65,214.64,5.34896384]
[1758738984047,2.14421758,214.65,214.64,5.34896384]
[1758738984842,35.76,214.66,214.64,5.34896384]
[1758738985144,2.14421758,214.65,214.64,5.34896384]
[1758738986528,2.14421758,214.65,214.64,4.65896384]
[1758738987620,2.14421758,214.65,214.59,2.14421758]
[1758738987828,2.14421758,214.65,214.64,0.69]
[1758738989947,2.14421758,214.65,214.64,5.34896384]
[1758738996656,2.14421758,214.65,214.64,16.99637345]
[1758738997158,2.62421758,214.65,214.64,16.30637345]
[1758738997346,2.62421758,214.65,214.64,4.65896384]
[1758738997960,2.14421758,214.65,214.64,4.65896384]
[1758738998140,2.14421758,214.65,214.62,16.99789301]
[1758738998336,2.14421758,214.64,214.62,16.30789301]
[1758738998647,2.14421758,214.63,214.62,16.30789301]
[1758738998838,2.14421758,214.63,214.62,16.99789301]
[1758739002438,2.14421758,214.63,214.62,16.30789301]
[1758739003668,2.14421758,214.63,214.62,0.69]
[1758739004978,2.14421758,214.63,214.62,4.659398]
[1758739005455,2.62421758,214.63,214.62,4.659398]
[1758739006048,5.26259691,214.63,214.62,4.659398]
[1758739006755,5.26259691,214.63,214.6,16.30916601]
[1758739006956,2.14421758,214.61,214.6,16.30916601]
[1758739008468,2.14421758,214.61,214.55,23.30447945]
[1758739008644,3.11837933,214.63,214.6,0.69]
[1758739009853,2.14421758,214.61,214.58,0.69]
[1758739010052,2.14421758,214.59,214.58,0.69]
[1758739010670,2.14421758,214.59,214.58,5.35026656]
[1758739013473,2.14421758,214.59,214.58,4.66026656]
[1758739015269,2.14421758,214.59,214.57,4.66045585]
[1758739015270,2.62421758,214.59,214.57,4.66045585]
[1758739015573,2.14421758,214.58,214.57,4.66045585]
[1758739015775,2.62421758,214.58,214.54,4.66113545]
[1758739015962,2.14421758,214.55,214.54,4.66113545]
[1758739016365,2.14421758,214.55,214.54,5.32113545]
[1758739020585,2.14421758,214.56,214.54,16.97397408]
[1758739020884,2.14421758,214.56,214.55,0.69]
[1758739021064,35.74,214.6,214.55,0.69]
[1758739021264,2.14421758,214.56,214.55,0.69]
[1758739021465,35.74,214.6,214.56,16.31245338]
[1758739021658,2.14421758,214.58,214.57,0.69]
[1758739023785,2.14421758,214.58,214.56,16.31245338]
[1758739023987,3.11647273,214.61,214.57,17.00169314]
[1758739024193,3.59647273,214.61,214.57,17.00169314]
[1758739025282,3.35073111,214.58,214.57,17.00169314]
[1758739039805,26.0,214.62,214.57,17.00169314]
[1758739039983,26.0,214.62,214.58,0.69]
[1758739040198,3.35073111,214.61,214.59,4.66004939]
[1758739040379,3.35073111,214.6,214.59,16.31017288]
[1758739040692,26.0,214.62,214.59,16.31017288]
[1758739040877,3.35073111,214.6,214.59,16.31017288]
[1758739041080,3.35073111,214.6,214.59,16.98017288]
[1758739042494,3.35073111,214.6,214.59,16.31017288]
[1758739042691,3.83073111,214.6,214.59,16.31017288]
[1758739043301,6.95595616,214.6,214.59,16.31017288]
[1758739043495,3.35073111,214.6,214.59,4.66004939]
[1758739043802,6.47595616,214.6,214.59,4.66004939]
[1758739044292,6.47595616,214.6,214.57,16.31169314]
[1758739044494,3.35073111,214.58,214.57,16.31169314]
[1758739045097,3.35073111,214.58,214.57,16.98169314]
[1758739046878,3.35073111,214.59,214.57,16.98169314]
[1758739047079,3.35073111,214.59,214.58,0.67]
[1758739047286,6.47595616,214.6,214.58,0.67]
[1758739047488,3.35073111,214.6,214.58,0.67]
[1758739048192,3.13122505,214.61,214.58,0.67]
[1758739048392,3.35073111,214.63,214.58,0.67]
[1758739048786,3.35073111,214.63,214.6,16.30941285]
[1758739049003,3.35073111,214.63,214.61,0.67]
[1758739049795,3.35073111,214.62,214.6,16.30941285]
[1758739050010,3.35073111,214.62,214.6,11.64958061]
[1758739050384,3.35073111,214.63,214.61,0.67]
[1758739050712,6.48197229,214.64,214.61,0.67]
[1758739051412,3.13124118,214.64,214.61,0.67]
[1758739051614,6.48197229,214.64,214.61,0.67]
[1758739051911,3.35073111,214.65,214.61,0.67]
[1758739052090,3.35073111,214.65,214.62,30.31970965]
[1758739052426,3.35073111,214.65,214.63,0.67]
[1758739052726,3.35073111,214.65,214.64,0.67]
[1758739053086,3.35073111,214.65,214.64,5.32896384]
[1758739053300,6.48045431,214.65,214.64,5.32896384]
[1758739053502,3.35073111,214.65,214.64,5.32896384]
[1758739054383,35.74,214.69,214.64,16.97637345]
[1758739054584,3.35073111,214.66,214.64,16.30637345]
[1758739055108,3.35073111,214.66,214.65,0.67]
[1758739057123,3.35073111,214.66,214.65,5.32874679]
[1758739058516,3.35073111,214.67,214.65,16.97561378]
[1758739058808,3.35073111,214.67,214.66,0.67]
[1758739059225,3.35073111,214.67,214.65,16.97561378]
[1758739059831,35.74,214.69,214.65,16.30561378]
[1758739060035,3.35073111,214.67,214.66,0.67]
[1758739060739,3.35073111,214.67,214.65,11.64686699]
[1758739060902,36.22,214.69,214.65,11.64686699]
[1758739061108,3.35073111,214.66,214.65,12.31686699]
[1758739061308,3.35073111,214.66,214.65,16.97561378]
[1758739063528,3.35073111,214.66,214.65,16.30561378]
[1758739064424,3.35073111,214.66,214.65,16.97561378]
[1758739069435,36.22,214.69,214.65,16.97561378]
[1758739069625,3.35073111,214.66,214.65,16.97561378]
[1758739070914,35.74,214.69,214.65,16.97561378]
[1758739071117,3.35073111,214.68,214.65,16.96561378]
[1758739071949,3.35073111,214.68,214.65,16.30561378]
[1758739072247,3.35073111,214.67,214.66,0.66]
[1758739072548,3.35073111,214.67,214.66,5.31852976]
[1758739074164,3.35073111,214.67,214.65,11.64686699]
[1758739074468,35.74,214.69,214.65,12.30686699]
[1758739074469,3.35073111,214.66,214.65,12.30686699]
[1758739077372,3.35073111,214.66,214.65,16.96561378]
[1758739080079,134.60000001,214.71,214.65,16.96561378]
[1758739080267,3.35073111,214.69,214.66,0.71]
[1758739081374,3.35073111,214.69,214.67,0.71]
[1758739081545,3.35073111,214.68,214.65,17.01561378]
[1758739081752,3.35073111,214.68,214.66,0.71]
[1758739082176,3.35073111,214.68,214.67,4.65831275]
[1758739082556,3.83073111,214.68,214.67,4.65831275]
[1758739082877,3.83073111,214.68,214.65,4.65874679]
[1758739083074,3.35073111,214.66,214.65,4.65874679]
[1758739083280,3.83073111,214.66,214.63,4.65918091]
[1758739083583,3.35073111,214.64,214.63,4.65918091]
[1758739083996,3.35073111,214.64,214.63,5.36918091]
[1758739084479,3.11990122,214.67,214.63,17.01713319]
[1758739084781,2.14270453,214.65,214.63,17.01713319]
[1758739085149,2.14270453,214.65,214.63,16.30713319]
[1758739085348,2.14270453,214.65,214.63,17.01713319]
[1758739085957,2.14270453,214.65,214.64,0.71]
[1758739086360,2.14270453,214.66,214.64,0.71]
[1758739086575,2.14270453,214.67,214.64,0.71]
[1758739086753,28.14270453,214.68,214.64,0.71]
[1758739087773,2.14270453,214.66,214.64,0.71]
[1758739088480,2.14270453,214.66,214.65,4.65874679]
[1758739088782,2.14270453,214.66,214.65,5.36874679]
[1758739090678,2.14270453,214.67,214.65,17.01561378]
[1758739090990,2.14270453,214.68,214.66,0.71]
[1758739092187,2.14270453,214.68,214.67,4.65831275]
[1758739092483,5.26784028,214.68,214.67,5.36831275]
[1758739092660,2.14270453,214.68,214.67,5.36831275]
[1758739093191,5.26784028,214.68,214.67,4.65831275]
[1758739094091,5.26784028,214.68,214.65,16.30561378]
[1758739094249,2.14270453,214.68,214.67,0.71]
[1758739094454,5.27247723,214.68,214.67,0.71]
[1758739094791,2.14270453,214.68,214.67,0.71]
[1758739095455,2.14270453,214.68,214.67,5.36831275]
[1758739096160,1e-08,214.71,214.67,19.15679917]
[1758739096481,2.14270454,214.71,214.68,0.71]
[1758739096692,2.14270453,214.69,214.67,30.31067773]
[1758739097002,2.14270453,214.68,214.67,16.30409464]
[1758739097181,2.14270453,214.68,214.67,19.15679917]
[1758739097702,2.14270453,214.69,214.67,19.15679917]
[1758739097898,2.14270453,214.69,214.68,0.71]
[1758739098775,2.14270453,214.69,214.68,2.85270453]
[1758739099683,1e-08,214.71,214.68,19.15603972]
[1758739099874,2.14270453,214.69,214.68,19.15603972]
[1758739100585,2.14270453,214.69,214.68,17.01333519]
[1758739100803,2.14270453,214.69,214.68,16.30333519]
[1758739101702,2.62270453,214.69,214.65,23.29328853]
[1758739101896,62.18000001,214.71,214.66,0.71]
[1758739102098,0.48,214.7,214.66,0.71]
[1758739102812,61.70000001,214.71,214.67,16.30409464]
[1758739102991,2.14270453,214.68,214.67,17.01409464]
[1758739106696,2.14270453,214.69,214.67,17.01409464]
[1758739106996,2.14270453,214.69,214.68,0.71]
[1758739107302,2.14270453,214.7,214.68,0.71]
[1758739107505,2.14270454,214.71,214.68,0.71]
[1758739107819,2.14270454,214.71,214.69,0.71]
[1758739108002,2.14270454,214.71,214.7,4.65766185]
[1758739108990,1e-08,214.71,214.7,4.65766185]
[1758739109193,2.14270454,214.71,214.7,4.65766185]
[1758739109605,2.14270454,214.71,214.69,4.6578788]
[1758739109798,2.14270454,214.71,214.69,5.3678788]
[1758739110483,2.14270453,214.7,214.69,5.3678788]
[1758739110998,2.14270453,214.7,214.69,4.6578788]
[1758739113505,2.14270453,214.7,214.69,4.6578788]
[1758739113890,2.62270453,214.7,214.69,4.6578788]
[1758739114298,5.75193012,214.7,214.69,4.6578788]
[1758739114498,5.75193012,214.7,214.68,4.65806392]
[1758739114712,5.27193012,214.69,214.68,4.65806392]
[1758739116024,5.27193012,214.69,214.66,16.30485418]
[1758739116222,2.14270453,214.67,214.66,17.01485418]
[1758739116404,2.14270453,214.67,214.66,16.30485418]
[1758739117028,2.14270453,214.67,214.66,4.65852976]
[1758739117212,5.27193012,214.67,214.66,4.65852976]
[1758739117415,2.14270453,214.67,214.66,4.65852976]
[1758739117727,5.27193012,214.67,214.66,4.65852976]
[1758739117919,2.14270453,214.67,214.66,4.65852976]
[1758739118228,5.27193012,214.67,214.64,4.65896384]
[1758739118406,2.14270453,214.65,214.64,5.36896384]
[1758739118609,2.14270453,214.65,214.64,4.65896384]
[1758739119531,2.14270453,214.65,214.63,16.3067933]
[1758739119712,2.14270453,214.64,214.63,17.0167933]
[1758739120518,3.12922559,214.67,214.63,17.0167933]
[1758739120724,3.12922559,214.69,214.64,0.71]
[1758739120924,2.14270453,214.65,214.64,0.71]
[1758739121117,2.14270453,214.65,214.63,16.3067933]
[1758739121627,2.14270453,214.65,214.64,5.36896384]
[1758739122713,2.14270453,214.65,214.64,4.65896384]
[1758739124727,2.14270453,214.65,214.63,16.3067933]
[1758739124917,2.14270453,214.65,214.64,0.71]
[1758739125312,2.14270453,214.65,214.63,16.3067933]
[1758739125313,2.14270453,214.65,214.63,17.0167933]
[1758739125528,2.14270453,214.64,214.63,17.0167933]
[1758739128610,28.62270453,214.64,214.61,4.65939937]
[1758739128933,2.14270453,214.62,214.61,4.65939937]
[1758739130210,2.14270453,214.62,214.61,5.36939937]
[1758739130609,2.14270453,214.62,214.59,12.36004692]
[1758739130809,26.0,214.64,214.59,11.65004692]
[1758739130810,2.14270453,214.6,214.59,11.65004692]
[1758739131004,26.0,214.64,214.59,11.65004692]
[1758739131211,2.14270453,214.62,214.59,11.65004692]
[1758739131514,2.14270453,214.62,214.6,0.66]
[1758739131714,2.14270453,214.61,214.6,0.66]
[1758739132630,2.14270453,214.61,214.6,5.31983224]
[1758739132813,2.14270453,214.65,214.6,16.96941285]
[1758739133139,40.01181663,214.7,214.61,0.66]
[1758739133339,2.14270453,214.65,214.61,14.67050788]
[1758739133509,2.14270453,214.65,214.62,0.66]
[1758739134740,2.14270453,214.66,214.63,4.65918091]
[1758739134940,2.14270453,214.66,214.64,0.66]
[1758739135240,2.14270453,214.65,214.64,0.66]
[1758739136518,2.14270453,214.65,214.64,5.31896384]
[1758739136853,2.14270453,214.67,214.64,16.96637345]
[1758739137015,2.14270453,214.67,214.65,0.66]
[1758739138123,2.14270453,214.67,214.66,0.66]
[1758739138438,0.14270453,214.67,214.66,0.66]
[1758739138631,0.14270453,214.67,214.66,5.31852976]
[1758739139929,2.14270453,214.67,214.66,16.96485418]
[1758739140947,3.12206354,214.69,214.66,16.96485418]
[1758739141246,2.14270453,214.67,214.66,16.96485418]
[1758739143315,2.14270453,214.67,214.66,16.30485418]
[1758739143933,2.14270453,214.67,214.66,0.66]
[1758739144647,2.14270453,214.67,214.64,0.66]
[1758739144648,3.34764651,214.67,214.64,0.66]
[1758739144820,3.34764651,214.66,214.64,0.66]
[1758739145457,3.34764651,214.66,214.65,4.65874679]
[1758739145655,3.34764651,214.66,214.65,5.31874679]
[1758739145946,3.34764651,214.66,214.65,4.65874679]
[1758739146354,3.34764651,214.66,214.65,5.31874679]
[1758739147228,3.34764651,214.67,214.65,5.31874679]
[1758739147445,3.12209147,214.69,214.67,4.65831275]
[1758739147647,3.34764651,214.68,214.67,4.65831275]
[1758739148248,3.34764651,214.68,214.67,5.31831275]
[1758739149020,3.12209147,214.69,214.67,5.31831275]
[1758739149226,3.34764651,214.69,214.67,16.30409464]
[1758739149751,3.34764651,214.69,214.68,0.66]
[1758739151956,3.34764651,214.69,214.68,5.31809577]
[1758739153042,3.34764651,214.69,214.68,4.65809577]
[1758739153353,3.34764651,214.69,214.68,5.31809577]
[1758739155058,3.34764651,214.69,214.68,4.65809577]
[1758739155556,3.34764651,214.69,214.68,5.31809577]
[1758739155853,3.34764651,214.69,214.68,4.65809577]
[1758739156357,3.34764651,214.69,214.68,0.66]
[1758739157955,3.34764651,214.69,214.67,0.66]
[1758739158257,3.12209147,214.7,214.66,11.6460761]
[1758739158258,3.34764651,214.68,214.66,11.6460761]
[1758739158651,3.34764651,214.68,214.67,0.66]
[1758739160540,3.34764651,214.68,214.66,16.30460586]
[1758739160746,3.34764651,214.67,214.66,16.96460586]
[1758739161764,3.34764651,214.67,214.66,16.30460586]
[1758739161943,3.34764651,214.67,214.66,4.65852976]
[1758739162147,3.34764651,214.67,214.66,5.33852976]
[1758739165545,3.34764651,214.67,214.63,16.30668644]
[1758739165746,3.34764651,214.67,214.65,0.68]
[1758739166070,3.34764651,214.67,214.63,16.30668644]
[1758739166364,3.34764651,214.67,214.66,0.68]
[1758739166759,3.34764651,214.67,214.66,5.33852976]
[1758739169354,3.34764651,214.67,214.66,4.65852976]
[1758739169668,3.34764651,214.67,214.66,5.33852976]
[1758739174858,3.34764651,214.68,214.66,16.98485418]
[1758739175085,3.34764651,214.68,214.67,0.68]
[1758739175458,3.12185353,214.7,214.67,0.68]
[1758739175673,3.34764651,214.68,214.67,5.33831275]
[1758739178561,3.12185353,214.7,214.67,16.98409464]
[1758739178773,3.34764651,214.68,214.67,16.98409464]
[1758739185189,6.46808816,214.68,214.67,16.30409464]
[1758739185482,3.34764651,214.68,214.67,16.30409464]
[1758739185889,6.46808816,214.68,214.67,4.65831275]
[1758739187175,6.46808816,214.68,214.66,4.65852976]
[1758739187486,6.46808816,214.67,214.66,4.65852976]
[1758739189089,6.46808816,214.67,214.64,11.64693085]
[1758739189383,0.48,214.7,214.64,11.64693085]
[1758739189384,3.34764651,214.65,214.64,11.64693085]
[1758739189680,3.12044165,214.69,214.64,11.64693085]
[1758739189860,3.34764651,214.65,214.64,11.64693085]
[1758739190487,3.34764651,214.65,214.64,16.98589469]
[1758739192271,3.34764651,214.67,214.64,16.98589469]
[1758739192464,3.12044165,214.66,214.65,0.7]
[1758739193370,6.46808816,214.66,214.65,0.7]
[1758739193572,3.34764651,214.66,214.65,0.7]
[1758739194369,3.34764651,214.66,214.65,5.35874679]
[1758739194571,6.46808816,214.66,214.65,5.35874679]
[1758739194777,3.34764651,214.66,214.65,5.35874679]
[1758739195387,6.46808816,214.66,214.65,8.7063933]
[1758739195690,3.34764651,214.66,214.65,8.7063933]
[1758739196694,3.34764651,214.66,214.65,8.0063933]
[1758739196899,3.34764651,214.66,214.65,8.7063933]
[1758739197262,6.46806789,214.66,214.65,8.7063933]
[1758739197481,3.34764651,214.66,214.65,8.7063933]
[1758739198296,6.46806789,214.66,214.65,8.7063933]
[1758739198470,3.34764651,214.66,214.65,8.7063933]
[1758739199089,6.46806789,214.66,214.65,4.65874679]
[1758739199296,3.34764651,214.66,214.65,4.65874679]
[1758739199492,6.46806789,214.66,214.65,4.65874679]
[1758739199669,3.34764651,214.66,214.65,4.65874679]
[1758739199875,3.34764651,214.66,214.65,5.35874679]
[1758739200076,6.46806789,214.66,214.65,4.65874679]
[1758739200295,3.34764651,214.66,214.65,5.35874679]
[1758739200797,6.46806789,214.66,214.65,5.35874679]
[1758739201097,3.34764651,214.66,214.65,5.35874679]
[1758739201585,6.46806789,214.66,214.65,5.35874679]
[1758739201788,3.34764651,214.66,214.65,5.35874679]
[1758739202164,6.46806789,214.66,214.65,5.35874679]
[1758739202365,3.34764651,214.66,214.65,5.35874679]
[1758739202904,6.46806789,214.66,214.65,5.35874679]
[1758739203101,3.34764651,214.66,214.65,5.35874679]
[1758739203601,3.12042138,214.66,214.65,5.35874679]
[1758739203763,3.34764651,214.67,214.65,17.00561378]
[1758739203971,3.34764651,214.66,214.65,16.30561378]
[1758739204495,3.34764651,214.66,214.65,17.00561378]
[1758739206580,2.14244366,214.66,214.65,17.00561378]
[1758739208183,3.12042138,214.68,214.65,17.00561378]
[1758739208384,1e-08,214.71,214.66,0.7]
[1758739208572,2.14244366,214.69,214.66,0.7]
[1758739209082,2.14244366,214.69,214.67,3.12080532]
[1758739209374,2.14244366,214.69,214.68,0.7]
[1758739209576,2.14244366,214.69,214.68,5.35809577]
[1758739210072,2.14244366,214.69,214.68,8.4786411]
[1758739210302,3.12054533,214.7,214.68,8.4786411]
[1758739210593,2.14244366,214.69,214.68,8.4786411]
[1758739210769,2.14244366,214.69,214.68,5.35809577]
[1758739210972,2.14244366,214.69,214.68,8.4786411]
[1758739211973,3.12054533,214.7,214.68,8.4786411]
[1758739212182,2.14244367,214.71,214.69,0.7]
[1758739212494,5.262989,214.71,214.69,0.7]
[1758739212674,2.14244367,214.71,214.7,3.82054533]
[1758739213397,2.14244367,214.71,214.7,8.47820718]
[1758739216082,2.14244367,214.71,214.7,7.77820718]
[1758739217283,2.14244367,214.71,214.7,8.47820718]
[1758739217602,2.14244367,214.71,214.7,7.77820718]
[1758739218776,2.14244367,214.71,214.7,8.47820718]
[1758739222509,2.14244367,214.71,214.7,7.77820718]
[1758739222807,2.14244367,214.71,214.7,8.45820718]
[1758739235111,1e-08,214.71,214.7,8.45820718]
[1758739236108,2.14244367,214.71,214.7,8.45820718]
[1758739237490,1e-08,214.71,214.7,8.45820718]
[1758739243488,0.2,214.75,214.7,45.53311473]
[1758739243687,0.2,214.75,214.71,0.68]